bitfinex/quotes_SOLUSD_20220228
["timestamp","ask_amount","ask_price","bid_price","bid_amount"]
[1646069992644,23.01042909,94.819,94.741,81.24789496]
[1646069992843,1.43807449,94.818,94.741,81.24789496]
[1646069998946,1.43807449,94.818,94.742,63.26]
[1646069999146,1.67426258,94.847,94.748,63.26]
[1646069999346,1.84856515,94.846,94.75,168.76]
[1646069999545,1.84856515,94.846,94.75,63.26]
[1646069999747,21.44819613,94.845,94.75,63.26]
[1646070000150,26.9959922,94.844,94.75,63.26]
[1646070000347,1.40944613,94.843,94.742,63.26]
[1646070001047,1.62383229,94.841,94.742,63.26]
[1646070001451,1.79338489,94.839,94.742,63.26]
[1646070001850,1.58140018,94.837,94.742,63.26]
[1646070002252,21.44819613,94.836,94.742,63.26]
[1646070002452,24.09240951,94.835,94.742,63.26]
[1646070002655,1.62671815,94.834,94.742,63.26]
[1646070002952,15.15,94.83,94.742,63.26]
[1646070003251,4.51837641,94.829,94.742,63.26]
[1646070004353,1.41210624,94.829,94.75,63.26]
[1646070004553,22.6817,94.835,94.76,168.76]
[1646070004753,22.6817,94.835,94.76,63.26]
[1646070005355,23.63668636,94.834,94.762,63.26]
[1646070008559,22.6817,94.835,94.764,63.26]
[1646070008761,21.44819613,94.863,94.769,105.5]
[1646070008961,4.219,94.874,94.778,63.26]
[1646070009160,4.218,94.88,94.794,63.26]
[1646070009361,4.218,94.88,94.81,168.76]
[1646070009560,26.82968036,94.879,94.812,63.26]
[1646070009861,26.82968036,94.879,94.814,63.26]
[1646070010062,26.82968036,94.879,94.813,22.8196]
[1646070010264,1.65387076,94.878,94.813,22.8196]
[1646070010462,1.54972646,94.877,94.813,22.8196]
[1646070010670,0.56624889,94.877,94.813,22.8196]
[1646070013668,23.572,94.878,94.813,22.8196]
[1646070015768,1.80159752,94.877,94.813,22.8196]
[1646070015966,23.572,94.878,94.813,22.8196]
[1646070017771,23.572,94.878,94.814,63.26]
[1646070017972,23.7314,94.899,94.818,168.76]
[1646070018589,38.7278,94.92,94.818,168.76]
[1646070018789,24.51849304,94.919,94.819,5.26152827]
[1646070018988,24.51849304,94.919,94.821,168.76]
[1646070019189,24.51849304,94.919,94.822,2.31607104]
[1646070019388,24.51849304,94.919,94.823,4.216]
[1646070019988,24.51849304,94.919,94.825,168.76]
[1646070020188,24.51849304,94.919,94.827,168.76]
[1646070020390,24.51849304,94.919,94.831,168.76]
[1646070020591,24.51849304,94.919,94.832,4.216]
[1646070020989,23.9749,94.949,94.832,4.216]
[1646070021201,193.626,94.99,94.832,4.216]
[1646070021202,15.15,94.96,94.833,196.34621976]
[1646070021394,4.215,94.962,94.835,168.76]
[1646070021590,4.215,94.984,94.837,168.76]
[1646070021789,4.215,94.984,94.851,168.76]
[1646070021990,26.78170234,94.963,94.854,63.26]
[1646070022190,1.42745188,94.962,94.854,63.26]
[1646070022391,20.20535267,94.962,94.856,63.26]
[1646070022593,23.8036,94.961,94.858,63.26]
[1646070022791,1.65119038,94.96,94.858,63.26]
[1646070022992,1.65119038,94.96,94.86,63.26]
[1646070023994,1.61115635,94.959,94.861,63.26]
[1646070024596,5.82515635,94.959,94.857,24.8149]
[1646070024895,1.43924589,94.957,94.857,24.8149]
[1646070025294,18.77790079,94.956,94.857,24.8149]
[1646070025494,1.59514279,94.955,94.857,24.8149]
[1646070025700,15.15,94.94,94.857,24.8149]
[1646070025896,1.49980327,94.938,94.857,24.8149]
[1646070026495,1.49980327,94.938,94.834,63.26]
[1646070026695,1.49980327,94.938,94.835,87.5039]
[1646070026895,1.49980327,94.938,94.835,24.2439]
[1646070026896,4.215,94.937,94.835,24.2439]
[1646070027097,5.86191353,94.937,94.835,24.2439]
[1646070027299,1.6940401,94.935,94.835,24.2439]
[1646070027495,1.86633645,94.933,94.835,24.2439]
[1646070027698,15.15,94.92,94.835,24.2439]
[1646070027996,1.37142917,94.918,94.827,54.5913043]
[1646070028200,1.37142917,94.918,94.75,10.23426804]
[1646070028396,4.216,94.917,94.76,17.97595634]
[1646070028596,22.99390079,94.917,94.767,154.3909]
[1646070028798,20.58257164,94.916,94.767,154.3909]
[1646070028999,1.66903276,94.915,94.77,63.26]
[1646070029200,20.44693355,94.915,94.809,44.32132428]
[1646070029400,23.8545,94.918,94.809,44.32132428]
[1646070029401,20.48176173,94.914,94.809,44.32132428]
[1646070029698,27.09045277,94.899,94.809,44.32132428]
[1646070029899,15.15,94.89,94.809,44.32132428]
[1646070030098,1.77051124,94.889,94.809,44.32132428]
[1646070030299,1.77051124,94.889,94.782,63.26]
[1646070030499,1.44787232,94.887,94.782,63.26]
[1646070031199,24.9392,94.886,94.781,22.6945]
[1646070031401,1.59575031,94.885,94.781,22.6945]
[1646070031599,20.3736511,94.885,94.781,22.6945]
[1646070031799,20.6263056,94.884,94.781,22.6945]
[1646070032000,15.15,94.87,94.781,22.6945]
[1646070032199,27.70351723,94.869,94.781,22.6945]
[1646070032401,1.43011681,94.868,94.781,22.6945]
[1646070032800,1.43011681,94.868,94.777,45.53795938]
[1646070033701,4.218,94.867,94.777,45.53795938]
[1646070035807,4.218,94.867,94.767,24.9656]
[1646070036004,4.218,94.867,94.758,23.6649]
[1646070036205,10.458,94.867,94.758,23.6649]
[1646070036407,20.14804629,94.866,94.758,23.6649]
[1646070036606,5.66694711,94.865,94.758,23.6649]
[1646070036806,15.15,94.85,94.759,56.99335533]
[1646070037006,1.49367169,94.848,94.759,56.99335533]
[1646070037206,4.219,94.847,94.759,56.99335533]
[1646070040812,1.49367169,94.848,94.759,56.99335533]
[1646070042310,4.219,94.847,94.759,56.99335533]
[1646070042511,1.49367169,94.848,94.76,63.26]
[1646070043711,1.49367169,94.848,94.758,23.6649]
[1646070043912,4.219,94.847,94.726,15.4582]
[1646070044112,5.58324743,94.847,94.726,15.4582]
[1646070044313,18.77790079,94.846,94.726,15.4582]
[1646070044540,5.98318896,94.845,94.726,15.4582]
[1646070044717,15.15,94.83,94.727,53.90065117]
[1646070044912,4.22,94.829,94.727,53.90065117]
[1646070045113,24.66360415,94.828,94.727,53.90065117]
[1646070045314,5.67480681,94.827,94.706,2.78492468]
[1646070045613,5.67480681,94.827,94.705,110.2482]
[1646070045614,1.62208061,94.826,94.705,110.2482]
[1646070045815,6.05381183,94.825,94.705,110.2482]
[1646070046012,24.83171262,94.825,94.705,110.2482]
[1646070046213,1.6327571,94.824,94.705,110.2482]
[1646070046413,15.15,94.81,94.709,168.76]
[1646070046614,1.68102394,94.808,94.709,168.76]
[1646070047013,1.68102394,94.808,94.709,63.26]
[1646070047414,1.68102394,94.808,94.707,63.26]
[1646070048217,45.8348,94.809,94.709,63.26]
[1646070048419,24.66360415,94.828,94.724,105.5]
[1646070048716,24.66360415,94.828,94.739,63.26]
[1646070048916,1.63513659,94.827,94.71,48.73621976]
[1646070049116,1.63513659,94.827,94.706,24.5417]
[1646070049316,22.99790079,94.826,94.706,24.5417]
[1646070049517,1.59585197,94.825,94.706,24.0417]
[1646070049715,6.06972378,94.824,94.706,24.0417]
[1646070049917,15.15,94.81,94.707,46.03893615]
[1646070050116,24.8002,94.809,94.707,46.03893615]
[1646070050317,1.48215012,94.808,94.707,46.03893615]
[1646070050719,23.5223,94.807,94.707,46.03893615]
[1646070050921,1.87158801,94.806,94.707,46.03893615]
[1646070051320,1.87158801,94.806,94.71,63.26]
[1646070052520,1.87158801,94.806,94.707,46.03893615]
[1646070052521,1.87158801,94.806,94.708,63.26]
[1646070052821,4.221,94.805,94.71,63.26]
[1646070053822,5.71056868,94.806,94.709,168.76]
[1646070055423,4.221,94.806,94.709,168.76]
[1646070055625,4.221,94.806,94.71,2.89947934]
[1646070055825,23.5223,94.807,94.71,2.89947934]
[1646070056023,23.5223,94.807,94.711,168.76]
[1646070056226,23.5223,94.807,94.712,2.78483421]
[1646070056425,23.5223,94.807,94.714,168.76]
[1646070056624,23.5223,94.807,94.715,2.2910468]
[1646070057423,23.5223,94.807,94.717,168.76]
[1646070057622,23.5223,94.807,94.718,2.88510459]
[1646070057824,23.5223,94.807,94.729,168.76]
[1646070058623,23.5223,94.807,94.724,2.79734879]
[1646070058826,23.5223,94.807,94.69,15.762]
[1646070058827,1.35763993,94.806,94.708,63.26]
[1646070059844,1.35763993,94.806,94.71,63.26]
[1646070060847,1.35763993,94.806,94.711,63.26]
[1646070061848,1.35763993,94.806,94.709,168.76]
[1646070063551,23.5223,94.807,94.71,2.99412088]
[1646070063952,23.5223,94.807,94.712,168.76]
[1646070064150,23.5223,94.807,94.713,2.77400329]
[1646070067456,4.221,94.826,94.715,168.76]
[1646070067657,23.4562,94.825,94.721,168.76]
[1646070067856,23.7289,94.839,94.722,2.27584126]
[1646070068257,23.7289,94.839,94.724,168.76]
[1646070068457,23.7289,94.839,94.725,2.66307122]
[1646070068960,23.7289,94.839,94.727,2.81714076]
[1646070069158,23.7289,94.839,94.731,168.76]
[1646070069358,23.7289,94.839,94.732,2.74069048]
[1646070069762,23.7289,94.839,94.731,63.26]
[1646070069960,1.53610263,94.827,94.731,63.26]
[1646070070159,22.5747,94.826,94.724,63.26]
[1646070070359,1.45808213,94.825,94.723,22.5731]
[1646070070562,5.67808213,94.825,94.723,22.5731]
[1646070070961,24.45598292,94.825,94.723,22.5731]
[1646070071163,1.78092134,94.824,94.723,22.5731]
[1646070071362,15.15,94.81,94.69,18.50878921]
[1646070071564,28.57699667,94.809,94.695,63.26]
[1646070071762,26.8241,94.809,94.695,63.26]
[1646070071961,1.85841194,94.808,94.695,63.26]
[1646070072161,27.4121,94.807,94.695,63.26]
[1646070072361,1.36317186,94.806,94.708,63.26]
[1646070072562,4.221,94.805,94.708,63.26]
[1646070074064,4.221,94.805,94.71,63.26]
[1646070074264,1.36317186,94.806,94.71,63.26]
[1646070075161,1.36317186,94.806,94.711,63.26]
[1646070076166,23.1911,94.807,94.717,63.26]
[1646070076367,23.1911,94.807,94.728,105.5]
[1646070076567,23.1911,94.807,94.739,63.26]
[1646070076965,4.22,94.827,94.745,63.26]
[1646070077364,24.66360415,94.828,94.745,63.26]
[1646070077764,4.22,94.827,94.745,63.26]
[1646070078164,24.66360415,94.828,94.739,63.26]
[1646070078365,1.82840485,94.827,94.729,2.74678921]
[1646070078565,1.82840485,94.827,76.242,114.31243325]
[1646070078566,1.82840485,94.827,94.719,2.74678921]
[1646070078766,189.41,94.82,94.668,105.5]
[1646070078966,204.56,94.81,94.666,105.5]
[1646070079269,189.41,94.8,94.666,105.5]
[1646070079467,15.15,94.79,94.676,105.5]
[1646070079665,1.78936668,94.789,94.677,63.26]
[1646070079866,1.78936668,94.789,94.679,63.26]
[1646070080066,24.9278,94.788,94.679,85.9414]
[1646070080266,1.43060713,94.787,94.679,85.9414]
[1646070083869,1.73452873,94.785,94.679,22.6814]
[1646070084070,15.15,94.77,94.679,22.6814]
[1646070084270,15.15,94.76,94.667,46.79078402]
[1646070084472,26.47782973,94.759,94.665,23.6888]
[1646070084670,5.69305266,94.758,94.663,15.7175]
[1646070085170,1.66696402,94.756,94.663,15.7175]
[1646070085370,189.41,94.75,94.618,4.223]
[1646070085569,15.15,94.74,94.638,52.82088181]
[1646070085771,5.84616839,94.739,94.638,52.82088181]
[1646070085969,10.07016839,94.739,94.638,52.82088181]
[1646070086169,1.41636064,94.738,94.638,52.82088181]
[1646070086369,4.224,94.737,94.638,52.82088181]
[1646070086571,5.77522073,94.737,94.638,52.82088181]
[1646070086772,26.86909037,94.737,94.638,52.82088181]
[1646070086973,1.86958402,94.736,94.638,52.82088181]
[1646070087171,4.224,94.735,94.638,52.82088181]
[1646070087472,1.51438574,94.719,94.638,52.82088181]
[1646070088271,4.224,94.718,94.638,52.82088181]
[1646070088872,4.224,94.718,94.617,49.3843]
[1646070089074,5.78640141,94.718,94.618,6.0]
[1646070089874,5.78640141,94.718,94.619,59.43276918]
[1646070090276,5.78640141,94.718,94.622,63.26]
[1646070090478,1.56240141,94.718,94.624,63.26]
[1646070091579,1.56240141,94.718,94.623,105.5]
[1646070091778,1.56240141,94.718,94.628,168.76]
[1646070092377,1.56240141,94.718,94.628,63.26]
[1646070092579,1.56240141,94.718,94.63,63.26]
[1646070093981,1.56240141,94.718,94.628,105.5]
[1646070094182,1.56240141,94.718,94.629,63.26]
[1646070096584,1.56240141,94.718,94.628,105.5]
[1646070096885,1.56240141,94.718,94.629,63.26]
[1646070097686,1.56240141,94.718,94.623,63.26]
[1646070097888,1.56240141,94.718,94.629,63.26]
[1646070098085,48.8485,94.719,94.646,105.5]
[1646070098286,6.65,94.727,94.658,105.5]
[1646070098487,6.65,94.727,94.659,63.26]
[1646070100589,6.65,94.727,94.654,63.26]
[1646070100804,6.65,94.727,94.658,168.76]
[1646070102108,6.65,94.727,94.654,63.26]
[1646070103313,6.65,94.727,94.651,63.26]
[1646070103711,6.65,94.727,94.659,63.26]
[1646070104714,6.65,94.727,94.658,168.76]
[1646070105311,6.65,94.727,94.62,2.74678921]
[1646070105519,6.65,94.727,94.613,4.224]
[1646070105712,6.65,94.727,94.611,2.93337155]
[1646070105912,6.65,94.727,94.611,2.80573784]
[1646070106311,6.65,94.727,94.634,63.26]
[1646070106712,23.3871,94.726,94.634,63.26]
[1646070106914,1.618442,94.725,94.634,63.26]
[1646070107113,15.15,94.72,94.634,63.26]
[1646070107314,1.38635277,94.719,94.634,63.26]
[1646070108015,1.38635277,94.719,94.633,43.90548216]
[1646070109820,4.224,94.718,94.633,43.90548216]
[1646070110121,1.60313376,94.717,94.633,43.90548216]
[1646070110317,5.7109062,94.716,94.633,43.90548216]
[1646070110518,26.80477584,94.716,94.633,43.90548216]
[1646070110719,1.5577841,94.715,94.633,43.90548216]
[1646070110919,1.62034666,94.713,94.633,43.90548216]
[1646070111218,15.15,94.7,94.633,43.90548216]
[1646070111419,25.1183216,94.699,94.633,43.90548216]
[1646070111619,1.85685554,94.698,94.633,43.90548216]
[1646070112921,23.56169254,94.699,94.633,43.90548216]
[1646070113522,15.15,94.7,94.633,43.90548216]
[1646070114325,15.15,94.7,94.634,63.26]
[1646070114527,27.01166495,94.7,94.634,63.26]
[1646070117027,27.01166495,94.7,94.633,43.90548216]
[1646070117028,23.8253,94.714,94.64,63.26]
[1646070117229,23.8253,94.714,94.65,63.26]
[1646070118430,23.8253,94.714,94.649,63.26]
[1646070119431,15.15,94.73,94.65,63.26]
[1646070119832,27.3105,94.757,94.656,63.26]
[1646070120032,27.3105,94.757,94.66,63.26]
[1646070120033,4.224,94.757,94.66,63.26]
[1646070120233,4.223,94.785,94.671,63.26]
[1646070120435,4.223,94.785,94.678,105.5]
[1646070120632,4.223,94.785,94.672,23.3953]
[1646070120633,4.222,94.79,94.691,168.76]
[1646070121034,5.72827277,94.79,94.691,168.76]
[1646070121436,1.52464885,94.788,94.693,63.26]
[1646070121637,1.52464885,94.788,94.697,63.26]
[1646070122035,23.4615,94.787,94.697,63.26]
[1646070122735,23.4615,94.787,94.693,63.26]
[1646070124237,23.4615,94.787,94.699,168.76]
[1646070124537,23.4615,94.787,94.699,63.26]
[1646070125241,23.4615,94.787,94.7,63.26]
[1646070126242,23.4615,94.787,94.695,63.26]
[1646070126443,23.4615,94.787,94.71,63.26]
[1646070126643,23.4615,94.787,94.72,63.26]
[1646070127662,27.514852,94.786,94.722,63.26]
[1646070130567,23.4615,94.787,94.722,63.26]
[1646070130766,1.6043563,94.833,94.73,63.26]
[1646070130964,97.0359,94.849,94.738,63.26]
[1646070130965,15.15,94.82,94.738,63.26]
[1646070131665,50.8375253,94.819,94.738,168.76]
[1646070132265,50.8375253,94.819,94.725,63.26]
[1646070132467,50.8375253,94.819,94.729,63.26]
[1646070133069,4.22,94.818,94.729,63.26]
[1646070133472,5.88281006,94.818,94.723,63.26]
[1646070134272,23.7820772,94.818,94.723,63.26]
[1646070134467,1.55888956,94.817,94.723,63.26]
[1646070134668,4.22,94.816,94.723,63.26]
[1646070134871,4.22,94.816,94.725,63.26]
[1646070135269,4.22,94.816,94.724,55.32285697]
[1646070136773,4.22,94.816,94.722,22.8321]
[1646070136971,4.22,94.816,94.665,2.62702836]
[1646070137172,22.11926714,94.816,94.679,24.2753]
[1646070137373,189.41,94.81,94.679,24.2753]
[1646070137572,15.15,94.8,94.679,24.2753]
[1646070137773,55.33591378,94.799,94.68,108.54617015]
[1646070137973,1.51319294,94.798,94.688,168.76]
[1646070138176,4.221,94.797,94.688,63.26]
[1646070138674,5.60248318,94.797,94.688,63.26]
[1646070138873,1.38148318,94.797,94.693,105.5]
[1646070139172,1.38148318,94.797,94.698,168.76]
[1646070139371,1.38148318,94.797,94.7,168.76]
[1646070143076,49.6922,94.799,94.701,3.00784884]
[1646070143677,49.6922,94.799,94.702,2.74678921]
[1646070146879,4.221,94.818,94.702,2.74678921]
[1646070147079,23.8655,94.818,94.705,2.38825938]
[1646070147480,23.8655,94.818,94.706,2.74678921]
[1646070148279,4.221,94.817,94.706,2.74678921]
[1646070149082,23.8655,94.818,94.706,2.74678921]
[1646070149484,23.8655,94.818,94.711,168.76]
[1646070149682,23.8655,94.818,94.713,168.76]
[1646070149882,23.8655,94.818,94.714,2.69983232]
[1646070150084,23.8655,94.818,94.716,2.25433364]
[1646070150282,23.8655,94.818,94.721,168.76]
[1646070150483,23.8655,94.818,94.722,3.03613994]
[1646070150681,25.23252689,94.818,94.721,168.76]
[1646070151086,25.23252689,94.818,94.721,184.6479]
[1646070151282,1.73919056,94.817,94.721,184.6479]
[1646070151781,15.15,94.81,94.715,63.26]
[1646070151983,1.53916818,94.809,94.715,63.26]
[1646070153786,19.43843532,94.809,94.715,63.26]
[1646070153983,1.55869856,94.808,94.715,63.26]
[1646070154184,1.55869856,94.808,94.716,44.48787855]
[1646070154385,1.62460783,94.806,94.716,44.48787855]
[1646070154784,1.62460783,94.806,94.717,63.26]
[1646070156988,1.62460783,94.806,94.718,105.5]
[1646070157188,1.62460783,94.806,94.719,63.26]
[1646070158090,1.62460783,94.806,94.717,63.26]
[1646070158291,24.0818,94.807,94.725,63.26]
[1646070158491,5.64888481,94.806,94.725,63.26]
[1646070158694,5.82554244,94.806,94.725,63.26]
[1646070159191,4.22,94.806,94.727,63.26]
[1646070159392,24.0818,94.807,94.733,63.26]
[1646070159593,24.0818,94.807,94.739,63.26]
[1646070160901,24.0818,94.807,94.741,63.26]
[1646070162395,24.0818,94.807,94.718,168.76]
[1646070162599,1.80027193,94.806,94.718,168.76]
[1646070165397,1.80027193,94.806,94.717,63.26]
[1646070167998,24.0818,94.807,94.729,63.26]
[1646070168420,1.44689254,94.806,94.729,63.26]
[1646070169222,24.0818,94.807,94.73,63.26]
[1646070169723,1.47451663,94.806,94.73,63.26]
[1646070170323,1.47451663,94.806,94.731,63.26]
[1646070171324,24.0818,94.807,94.749,63.26]
[1646070171528,24.0818,94.807,94.751,63.26]
[1646070177531,24.0818,94.807,94.75,57.28703884]
[1646070177930,1.84696256,94.806,94.75,57.28703884]
[1646070182334,1.84696256,94.806,94.729,24.9136]
[1646070183235,1.84696256,94.806,94.729,71.1826808]
[1646070184638,1.84696256,94.806,94.729,46.2690808]
[1646070184836,6.06696256,94.806,94.729,46.2690808]
[1646070185336,23.9662297,94.806,94.729,46.2690808]
[1646070185538,1.57959218,94.805,94.695,63.26]
[1646070185738,1.57959218,94.805,94.687,86.8068]
[1646070185739,24.86269218,94.805,94.687,86.8068]
[1646070185936,23.70671272,94.804,94.687,86.8068]
[1646070186137,15.15,94.79,94.687,86.8068]
[1646070186335,30.13666666,94.789,94.687,86.8068]
[1646070186535,1.79042616,94.788,94.689,63.26]
[1646070186736,6.62411661,94.787,94.689,63.26]
[1646070186936,8.07413519,94.787,94.689,63.26]
[1646070187135,1.73861057,94.786,94.689,63.26]
[1646070187340,4.222,94.785,94.689,63.26]
[1646070187539,1.49854973,94.769,94.689,63.26]
[1646070187739,1.84943438,94.767,94.689,63.26]
[1646070189842,1.84943438,94.767,94.689,63.26]
[1646070191840,1.84943438,94.767,94.689,88.2345]
[1646070192241,24.3157,94.768,94.689,88.2345]
[1646070192642,24.3157,94.768,94.689,90.98128921]
[1646070193042,24.3157,94.768,94.699,63.26]
[1646070193442,24.3157,94.768,94.706,105.5]
[1646070193642,24.3157,94.768,94.689,27.72128921]
[1646070193643,24.3157,94.768,94.709,63.26]
[1646070194043,24.3157,94.768,94.711,63.26]
[1646070194244,24.3157,94.768,94.713,63.26]
[1646070195049,24.3157,94.768,94.719,63.26]
[1646070195246,24.3157,94.768,94.721,63.26]
[1646070195447,1.67823096,94.797,94.721,63.26]
[1646070195646,26.00493096,94.797,94.721,63.26]
[1646070196745,30.22593096,94.797,94.721,63.26]
[1646070197847,28.5477,94.797,94.729,63.26]
[1646070198048,24.3267,94.797,94.729,63.26]
[1646070199051,24.3267,94.797,94.721,63.26]
[1646070199451,24.3267,94.797,94.726,105.5]
[1646070199650,24.3267,94.797,94.729,63.26]
[1646070200652,24.3267,94.797,94.728,168.76]
[1646070202174,1.75821182,94.796,94.72,50.33152867]
[1646070202375,15.15,94.79,94.72,50.33152867]
[1646070202580,1.75503414,94.789,94.671,25.39133491]
[1646070202776,1.75503414,94.789,94.672,8.60584355]
[1646070202976,19.65430128,94.789,94.672,30.66932624]
[1646070203175,19.52170832,94.788,94.673,168.76]
[1646070203376,1.38162542,94.787,94.673,190.82348269]
[1646070203575,19.28089256,94.787,94.675,168.76]
[1646070203774,19.28459486,94.786,94.675,168.76]
[1646070203975,25.33808874,94.785,94.675,168.76]
[1646070204176,15.15,94.78,94.677,168.76]
[1646070204374,1.40323221,94.779,94.677,168.76]
[1646070210082,1.40323221,94.779,94.677,63.26]
[1646070210280,1.40323221,94.779,94.674,58.94097024]
[1646070210281,4.222,94.778,94.678,168.76]
[1646070214885,4.222,94.778,94.675,63.26]
[1646070216884,4.222,94.778,94.679,63.26]
[1646070217285,4.222,94.778,94.685,63.26]
[1646070217485,4.222,94.778,94.689,63.26]
[1646070217685,1.40323221,94.779,94.689,63.26]
[1646070218488,1.40323221,94.779,94.687,63.26]
[1646070219789,1.40323221,94.779,94.689,63.26]
[1646070220589,1.40323221,94.779,94.69,63.26]
[1646070221389,4.222,94.778,94.69,63.26]
[1646070221688,4.222,94.778,94.688,168.76]
[1646070222790,4.222,94.778,94.689,5.06744913]
[1646070222989,23.5613,94.785,94.689,5.06744913]
[1646070223190,23.5613,94.785,94.69,197.22485341]
[1646070223388,23.5613,94.785,94.702,2.63930019]
[1646070223591,23.5613,94.785,94.704,168.76]
[1646070224190,23.5613,94.785,94.705,2.74678921]
[1646070224991,23.5613,94.785,94.704,168.76]
[1646070226596,4.221,94.804,94.707,2.90413472]
[1646070226794,24.7922,94.808,94.707,2.90413472]
[1646070226993,24.7922,94.808,94.711,168.76]
[1646070227197,1.37331789,94.804,94.711,168.76]
[1646070227395,20.5862771,94.803,94.711,168.76]
[1646070227794,1.40959196,94.802,94.711,168.76]
[1646070230796,24.7922,94.808,94.711,171.50678921]
[1646070231500,24.36381876,94.804,94.711,171.50678921]
[1646070231696,1.81900708,94.803,94.711,171.50678921]
[1646070234602,1.81900708,94.803,94.711,168.76]
[1646070236507,1.81900708,94.803,94.704,27.348]
[1646070236707,1.81900708,94.803,94.705,63.26]
[1646070236708,15.15,94.8,94.705,63.26]
[1646070237106,1.65451466,94.799,94.705,63.26]
[1646070238809,4.221,94.798,94.705,63.26]
[1646070239910,24.3503,94.797,94.705,63.26]
[1646070240111,1.73514966,94.796,94.705,63.26]
[1646070240310,1.73514966,94.796,94.707,63.26]
[1646070241113,1.73514966,94.796,94.707,168.76]
[1646070241518,1.73514966,94.796,94.708,2.74678921]
[1646070245435,1.73514966,94.796,94.708,63.26]
[1646070246436,1.73514966,94.796,94.706,63.26]
[1646070246638,1.73514966,94.796,94.718,63.26]
[1646070246836,1.73514966,94.796,94.728,63.26]
[1646070247135,1.73514966,94.796,94.704,27.348]
[1646070247136,1.73514966,94.796,94.705,63.26]
[1646070247337,15.15,94.79,94.705,63.26]
[1646070247537,1.70264576,94.789,94.705,63.26]
[1646070247736,1.87294888,94.788,94.705,63.26]
[1646070247937,22.17064711,94.788,94.705,63.22484879]
[1646070248136,1.49039726,94.787,94.705,63.22484879]
[1646070248338,5.77464674,94.786,94.705,63.22484879]
[1646070248537,1.85183723,94.784,94.705,63.22484879]
[1646070248736,1.409777,94.779,94.705,63.22484879]
[1646070248938,10.019777,94.779,94.704,67.44584879]
[1646070249537,10.019777,94.779,94.704,4.221]
[1646070249737,1.59264331,94.778,94.704,4.221]
[1646070250139,1.72485434,94.776,94.704,4.221]
[1646070252940,1.72485434,94.776,94.704,67.481]
[1646070254540,1.72485434,94.776,94.708,63.26]
[1646070254741,1.72485434,94.776,94.704,4.221]
[1646070254742,24.0676,94.785,94.712,63.26]
[1646070254941,24.0676,94.785,94.718,63.26]
[1646070255741,1.76873055,94.784,94.704,67.481]
[1646070263251,1.76873055,94.784,94.708,63.26]
[1646070264453,1.76873055,94.784,94.707,168.76]
[1646070265052,1.76873055,94.784,94.707,168.26]
[1646070266355,24.0676,94.785,94.707,168.26]
[1646070267354,24.0676,94.785,94.709,168.26]
[1646070272462,24.0676,94.785,94.711,168.26]
[1646070272865,1.51268762,94.798,94.711,168.26]
[1646070273064,22.7768,94.804,94.712,2.74678921]
[1646070278570,15.15,94.8,94.706,62.76]
[1646070278768,15.15,94.8,94.705,24.0576]
[1646070278769,1.55188867,94.799,94.708,62.76]
[1646070278967,21.8495869,94.799,94.708,62.76]
[1646070279167,15.15,94.8,94.708,62.76]
[1646070279168,21.66724599,94.798,94.708,62.76]
[1646070279368,1.38992144,94.797,94.708,62.76]
[1646070279970,1.48761405,94.796,94.706,62.76]
[1646070281876,1.48761405,94.796,94.705,24.0576]
[1646070281877,1.48761405,94.796,94.708,62.76]
[1646070282075,4.221,94.795,94.708,62.76]
[1646070283177,4.221,94.795,94.709,62.76]